bitfinex/quotes_ETHUSD_20210701
["timestamp","ask_amount","ask_price","bid_price","bid_amount"]
[1625121994349,7.70611742,2179.3,2176.7,0.15788867]
[1625121994443,7.70611742,2179.3,2176.7,6.36725777]
[1625121994543,7.70611742,2179.3,2176.8,5.93393413]
[1625121994643,2.39673703,2179.3,2176.8,5.93393413]
[1625121994744,2.39673703,2179.3,2176.9,0.14]
[1625121994846,0.85503703,2179.3,2177.0,6.88289]
[1625121994945,0.58387109,2179.3,2177.0,12.18497326]
[1625121995045,4.9088089,2179.5,2177.1,6.66357034]
[1625121995147,0.04937404,2179.8,2177.5,0.30410952]
[1625121995245,2.2,2180.1,2177.6,0.31664226]
[1625121995345,0.56742332,2179.4,2177.6,0.45664226]
[1625121995446,4.18779484,2179.3,2177.6,0.45664226]
[1625121995547,5.16182462,2180.0,2177.6,0.45664226]
[1625121995645,5.16182462,2180.0,2177.6,5.11724226]
[1625121995745,5.71071302,2180.0,2177.6,5.11724226]
[1625121995853,5.71071302,2180.0,2178.1,0.29306828]
[1625121995946,0.5488884,2180.0,2178.5,6.87875]
[1625121996098,5.0277786,2180.3,2178.6,0.50977817]
[1625121996099,4.2319063,2180.3,2178.6,0.50977817]
[1625121996200,13.0,2180.4,2178.7,0.01867408]
[1625121996301,13.0,2180.4,2178.8,0.27654059]
[1625121996546,13.0,2180.4,2179.4,0.0909167]
[1625121996743,13.0,2180.4,2179.5,0.14]
[1625121996894,4.10974601,2180.3,2179.0,0.12989813]
[1625121996992,13.51635871,2180.4,2178.8,12.7040743]
[1625121997096,13.51635871,2180.4,2179.1,0.14]
[1625121997097,4.67263047,2180.3,2179.1,0.14]
[1625121997291,5.25813894,2180.3,2179.1,0.14]
[1625121997492,4.67263047,2180.3,2179.1,0.14]
[1625121997597,4.61158528,2180.2,2179.1,0.14]
[1625121997697,13.0,2180.4,2179.2,0.29574629]
[1625121997894,4.32900656,2180.2,2179.3,0.23376076]
[1625121997996,13.0,2180.4,2179.5,6.87493]
[1625121998092,13.0,2180.4,2179.3,0.14]
[1625121998193,0.8599,2180.3,2179.6,0.14]
[1625121998294,3.98725123,2180.2,2179.6,0.14]
[1625121998398,3.98725123,2180.2,2179.7,0.14]
[1625121998496,18.8,2180.1,2179.0,3.29]
[1625121998593,4.59376287,2180.0,2179.1,0.14]
[1625121999002,4.46655052,2180.3,2179.1,0.14]
[1625121999452,6.09668624,2180.3,2179.1,0.14]
[1625121999547,7.97678624,2180.3,2179.1,0.14]
[1625121999645,7.97678624,2180.3,2178.6,0.14]
[1625121999750,0.09215012,2180.2,2178.4,0.01911703]
[1625121999952,0.50612056,2180.1,2178.4,0.01911703]
[1625122000146,5.81834535,2180.0,2178.4,0.01911703]
[1625122000252,6.41138499,2180.0,2178.4,0.01911703]
[1625122000345,0.16509652,2179.9,2178.4,0.01911703]
[1625122000449,6.88249,2179.4,2178.4,0.01911703]
[1625122000550,9.98749,2179.4,2178.4,0.01911703]
[1625122000649,4.64604194,2179.3,2178.4,0.01911703]
[1625122000749,0.07653218,2179.3,2178.4,0.01911703]
[1625122000851,0.07653218,2179.3,2178.0,1.998]
[1625122000852,4.55441646,2179.3,2178.0,2.138]
[1625122001006,0.07653218,2179.3,2178.0,2.138]
[1625122001099,0.07653218,2179.3,2178.0,0.14]
[1625122001199,5.9643945,2180.3,2178.1,0.13582395]
[1625122001299,13.0,2180.4,2178.1,0.13582395]
[1625122001397,13.0,2180.4,2178.5,0.30663089]
[1625122001600,13.0,2180.4,2178.6,0.34175316]
[1625122001699,13.0,2180.4,2179.0,1.998]
[1625122001801,13.0,2180.4,2179.1,0.08177355]
[1625122001901,13.0,2180.4,2179.1,5.75461697]
[1625122001999,13.0,2180.4,2179.1,0.14]
[1625122002699,4.26757586,2180.3,2179.1,0.14]
[1625122002799,8.23088927,2180.3,2179.1,0.14]
[1625122002901,7.95531152,2180.3,2179.1,0.14]
[1625122002998,3.6715,2180.3,2179.1,0.14]
[1625122003426,4.6182738,2180.2,2179.1,0.14]
[1625122003522,4.6182738,2180.2,2178.8,10.3156456]
[1625122003627,4.6182738,2180.2,2178.8,3.4385456]
[1625122004319,3.6715,2180.3,2178.8,3.4385456]
[1625122004418,4.24222066,2180.2,2178.8,3.4385456]
[1625122004522,4.06516617,2180.2,2178.8,3.4385456]
[1625122004917,3.6715,2180.3,2178.8,3.4385456]
[1625122005019,4.62347564,2180.2,2178.8,3.4385456]
[1625122005221,0.47583167,2180.1,2178.8,3.4385456]
[1625122005647,4.62347564,2180.2,2178.8,3.4385456]
[1625122005747,3.14320084,2180.2,2178.2,4.5843872]
[1625122005949,2.39621317,2180.1,2178.2,4.5843872]
[1625122006052,4.36188906,2180.0,2177.8,1.998]
[1625122006150,6.883,2179.0,2177.8,1.998]
[1625122006251,10.1187,2179.0,2177.8,1.998]
[1625122006349,4.97158369,2178.9,2177.8,1.998]
[1625122006451,4.97158369,2178.9,2177.5,3.441219]
[1625122006651,0.01867793,2178.8,2177.5,3.441219]
[1625122007725,4.97158369,2178.9,2177.5,3.67185387]
[1625122007828,3.2357,2179.0,2177.5,3.67185387]
[1625122008024,3.2357,2179.0,2177.6,5.86800047]
[1625122008124,3.2357,2179.0,2177.6,6.00303785]
[1625122008225,3.2357,2179.0,2177.5,3.441219]
[1625122008524,6.88348,2178.9,2177.5,3.441219]
[1625122008725,11.41825677,2178.9,2177.5,3.441219]
[1625122009023,6.88348,2178.9,2177.5,3.441219]
[1625122009131,4.91387724,2178.8,2176.9,3.4420872]
[1625122009229,0.51139713,2178.7,2176.9,3.4420872]
[1625122009327,5.58579944,2178.6,2176.3,9.9085]
[1625122009441,5.72579944,2178.6,2176.3,9.9085]
[1625122009542,5.72579944,2178.6,2175.8,1.998]
[1625122009543,8.0052575,2178.6,2175.8,1.998]
[1625122009634,6.88788,2177.5,2175.9,7.48341444]
[1625122009730,1.0968,2178.6,2176.1,3.4431494]
[1625122009831,1.0968,2178.6,2176.2,7.9324223]
[1625122009832,1.9594,2178.6,2176.2,7.9324223]
[1625122009964,3.75181336,2179.0,2176.7,0.30973239]
[1625122010062,0.00777594,2179.0,2176.7,0.30973239]
[1625122010264,0.00777594,2179.0,2177.3,0.29846134]
[1625122010364,1.661514,2179.8,2177.3,5.01166134]
[1625122010461,1.661514,2179.8,2178.0,3.4401992]
[1625122010566,0.06113367,2179.7,2178.1,6.33330614]
[1625122010662,0.06113367,2179.7,2178.2,0.15847274]
[1625122010765,24.46941,2180.4,2178.4,0.30923705]
[1625122010870,24.96089489,2180.4,2178.4,0.30923705]
[1625122011025,26.60959489,2180.4,2178.5,0.14]
[1625122011118,28.11311,2180.4,2178.5,0.14]
[1625122011214,26.46441,2180.4,2178.5,0.14]
[1625122011413,26.99192595,2180.4,2178.5,0.14]
[1625122011524,26.99192595,2180.4,2178.6,3.4395125]
[1625122011525,28.64352595,2180.4,2178.6,3.4395125]
[1625122011632,26.46441,2180.4,2178.1,0.0853537]
[1625122011765,26.46441,2180.4,2178.1,0.24446105]
[1625122011865,13.9152,2180.4,2178.4,0.30657644]
[1625122011965,13.0,2180.4,2178.7,5.37179382]
[1625122012063,13.0,2180.4,2178.8,0.08679802]
[1625122012204,13.0,2180.4,2179.3,3.4385009]
[1625122012399,13.0,2180.4,2179.4,0.14]
[1625122013102,4.34278668,2180.3,2179.4,0.14]
[1625122013405,13.0,2180.4,2179.4,0.14]
[1625122013558,13.0,2180.4,2179.4,3.6873]
[1625122013653,13.0,2180.4,2179.4,16.91732301]
[1625122013756,13.0,2180.4,2179.4,12.631]
[1625122013905,13.0,2180.4,2179.4,12.88280483]
[1625122014006,13.0,2180.4,2179.5,0.3061301]
[1625122014105,2.0,2181.0,2179.6,0.09461791]
[1625122014205,2.0,2181.0,2179.6,0.25754864]
[1625122014308,2.0,2181.0,2180.0,2.88766957]
[1625122014458,1.95,2181.0,2180.1,7.14865835]
[1625122014556,1.95,2181.0,2180.1,0.27480835]
[1625122014654,1.95,2181.0,2180.1,8.25974423]
[1625122015260,1.95,2181.0,2180.1,8.14]
[1625122015358,1.95,2181.0,2180.2,3.43706]
[1625122015459,4.03377447,2180.9,2180.2,3.43706]
[1625122015558,3.6757,2181.0,2180.3,0.14]
[1625122015665,4.45996455,2180.9,2180.3,0.14]
[1625122015759,4.45996455,2180.9,2180.2,3.43706]
[1625122015963,4.45996455,2180.9,2179.9,1.998]
[1625122016362,5.1871,2181.0,2179.5,3.65871391]
[1625122016459,4.05512893,2180.9,2179.5,30.90871391]
[1625122016566,1.6822,2181.9,2179.5,30.90871391]
[1625122016567,6.8763,2181.3,2179.6,0.08494616]
[1625122016718,4.83329779,2181.8,2179.6,0.14]
[1625122016809,9.68029193,2181.9,2179.7,0.18346111]
[1625122016908,5.04696269,2181.8,2179.7,0.20248461]
[1625122017310,5.04696269,2181.8,2179.8,0.14]
[1625122017425,5.04696269,2181.8,2179.8,3.67927759]
[1625122017511,4.59416164,2182.2,2180.0,0.30820785]
[1625122017611,4.44830182,2182.4,2180.0,0.30820785]
[1625122017709,4.44830182,2182.4,2180.6,6.87203]
[1625122017813,4.44830182,2182.4,2180.7,0.21438076]
[1625122018010,4.44830182,2182.4,2180.7,0.23273689]
[1625122018108,5.08316028,2182.6,2180.7,0.23273689]
[1625122018209,5.04707788,2182.6,2180.7,0.23273689]
[1625122018486,5.13960544,2182.6,2180.7,0.23273689]
[1625122018584,5.13960544,2182.6,2180.7,3.66893559]
[1625122018789,2.0174,2182.5,2180.7,3.66893559]
[1625122018992,1.4289,2182.1,2179.9,4.5817592]
[1625122019074,5.42805581,2182.0,2179.9,4.5817592]
[1625122019164,6.32671242,2182.0,2179.9,4.5817592]
[1625122019265,0.45959832,2181.9,2179.9,4.5817592]
[1625122019366,0.04843033,2181.9,2179.9,4.7217592]
[1625122019467,10.35931398,2182.0,2179.9,4.7217592]
[1625122019569,10.35931398,2182.0,2180.0,0.29276819]
[1625122019666,10.35931398,2182.0,2180.6,3.4369088]
[1625122019816,0.2018,2182.0,2180.6,3.4369088]
[1625122019915,7.43204907,2182.7,2180.6,4.1641]
[1625122020014,7.43204907,2182.7,2180.7,0.11044228]
[1625122020015,3.93102874,2182.5,2180.7,0.11044228]
[1625122020120,1.661514,2183.0,2180.7,0.25044228]
[1625122020220,1.661514,2183.0,2181.3,0.29305583]
[1625122020420,1.661514,2183.0,2181.3,12.12347511]
[1625122020515,4.2172536,2182.9,2181.4,3.43]
[1625122020617,4.10373009,2182.9,2181.5,0.18062244]
[1625122020720,4.03201111,2182.9,2181.5,0.18062244]
[1625122020813,0.41031728,2183.6,2181.6,0.14]
[1625122020918,0.52153249,2183.6,2181.7,0.19527725]
[1625122021016,5.11538695,2183.8,2181.7,0.21658385]
[1625122021017,2.0063,2183.7,2181.7,0.21658385]
[1625122021205,2.0063,2183.7,2181.7,0.35658385]
[1625122021266,5.24288527,2183.6,2181.7,0.35658385]
[1625122021366,6.11609844,2183.6,2181.7,0.0213066]
[1625122021467,2.207,2183.5,2181.7,0.0213066]
[1625122021566,4.78391672,2183.4,2181.7,0.0213066]
[1625122021668,4.81834003,2183.4,2181.7,0.0213066]
[1625122021765,1.7348,2183.3,2181.0,0.14]
[1625122021864,5.96376363,2183.2,2180.9,0.15112628]
[1625122021969,20.0,2182.5,2180.9,0.01483567]
[1625122022081,20.0,2182.5,2180.0,23.4]
[1625122022082,6.87519,2182.1,2180.0,23.4]
[1625122022170,35.71631046,2182.5,2180.0,23.4]
[1625122022171,5.02479232,2182.0,2180.0,23.4]
[1625122022270,32.49610549,2182.0,2180.0,23.4]
[1625122022368,0.29052833,2181.9,2180.0,23.4]
[1625122022520,5.45985532,2181.4,2180.0,23.4]
[1625122022617,58.2310577,2181.4,2178.4,13.2138]
[1625122022719,58.2310577,2181.4,2178.4,10.6878]
[1625122022720,1.09092016,2181.3,2178.4,10.6878]
[1625122022817,5.98562088,2180.6,2178.4,10.6878]
[1625122022917,9.74540595,2180.6,2178.4,0.00873166]
[1625122023018,5.06745813,2180.4,2178.4,0.00873166]
[1625122023119,5.72930034,2180.4,2178.4,0.00873166]
[1625122023216,5.72930034,2180.4,2177.9,3.86563925]
[1625122023217,6.88181,2180.0,2177.9,3.86563925]
[1625122023317,4.42857183,2179.9,2177.8,10.4746]
[1625122023468,4.42857183,2179.9,2177.5,6.88181]
[1625122023469,7.6203599,2179.9,2177.5,6.88181]
[1625122023567,0.50117417,2179.8,2177.5,6.88181]
[1625122023688,6.12880638,2179.7,2177.2,11.46557]
[1625122023769,0.15800629,2179.6,2177.0,11.46573]
[1625122023867,0.18030724,2179.6,2176.7,0.31311094]
[1625122023976,1.6897,2179.5,2176.7,0.31311094]
[1625122024067,4.86149117,2179.4,2176.7,0.31311094]
[1625122024168,0.28706263,2179.3,2177.0,1.998]
[1625122024264,0.28706263,2179.3,2176.7,0.31311094]
[1625122024817,4.49020172,2179.2,2177.0,6.88356]
[1625122024919,0.04436621,2179.1,2177.3,0.30618967]
[1625122025019,0.0493721,2179.3,2177.3,0.30618967]
[1625122025118,1.4116721,2179.3,2177.3,0.30618967]
[1625122025221,5.22042696,2179.2,2176.7,6.49721287]
[1625122025321,0.11151827,2179.1,2176.7,6.49721287]
[1625122025419,0.11151827,2179.1,2176.7,12.57484364]
[1625122025520,0.11151827,2179.1,2176.8,2.7194212]
[1625122025720,0.01552175,2179.2,2176.9,5.01]
[1625122025721,0.01552175,2179.2,2177.6,1.998]
[1625122025920,0.01552175,2179.2,2176.9,0.09709324]
[1625122026024,9.52782175,2179.2,2177.3,6.88258]
[1625122026118,9.52782175,2179.2,2177.3,6.83258]
[1625122026119,4.51019031,2179.1,2177.3,6.83258]
[1625122026221,4.72953914,2179.1,2177.3,6.83258]
[1625122026525,5.01,2178.9,2177.2,1.998]
[1625122026721,5.11765995,2178.8,2177.2,1.998]
[1625122026820,5.01,2178.6,2177.2,1.998]
[1625122026923,4.99249605,2178.5,2177.2,1.998]
[1625122027022,4.98767912,2178.5,2177.2,1.998]
[1625122027126,4.98767912,2178.5,2176.0,9.983]
[1625122027127,6.40380236,2178.5,2176.0,9.983]
[1625122027229,5.01,2178.3,2175.6,0.29199503]
[1625122027328,5.01,2178.3,2175.3,2.478]
[1625122027329,6.14246993,2178.3,2175.3,2.478]
[1625122027429,9.0562972,2178.2,2175.3,2.478]
[1625122027532,45.8525075,2178.1,2175.2,0.0276033]
[1625122027625,25.32821773,2178.0,2175.2,0.0276033]
[1625122027722,0.31821773,2177.9,2175.2,0.0276033]
[1625122027824,11.36768202,2177.7,2175.2,0.0276033]
[1625122027976,11.36768202,2177.7,2176.8,0.03335663]
[1625122027977,0.31209138,2177.6,2176.8,0.03335663]
[1625122028079,8.009,2177.3,2176.8,0.03335663]
[1625122028176,9.18971,2177.1,2175.2,0.0276033]
[1625122028275,9.18971,2177.1,2175.2,0.01380165]
[1625122028276,0.19018331,2177.0,2175.2,0.01380165]
[1625122028375,11.06776381,2177.0,2175.2,0.01380165]
[1625122028473,13.26714186,2177.0,2174.0,11.48241]
[1625122028579,7.34516733,2176.9,2174.0,11.48241]
[1625122028675,6.1146465,2176.8,2174.0,11.48241]
[1625122028773,11.2872476,2176.8,2174.0,11.48241]
[1625122028873,11.2872476,2176.8,2173.7,4.88483816]
[1625122028874,28.17321317,2176.7,2173.7,4.88483816]
[1625122028984,34.21897839,2176.6,2174.6,1.998]
[1625122029093,20.0,2176.3,2173.2,21.95157]
[1625122029181,9.19526,2175.7,2173.4,6.89522]
[1625122029279,9.19526,2175.7,2172.8,0.036]
[1625122029280,6.66191848,2175.6,2172.8,0.036]
[1625122029380,6.9381528,2175.4,2172.8,0.036]
[1625122029481,11.9707539,2175.4,2172.8,0.036]
[1625122029592,20.0,2174.8,2172.8,0.036]
[1625122029683,20.0,2174.5,2172.8,0.0001]
[1625122029779,0.00991726,2174.2,2172.8,0.0001]
[1625122029884,20.04061241,2174.1,2172.8,0.0001]
[1625122029978,20.91382558,2174.1,2172.8,0.0001]
[1625122030086,6.95861785,2174.2,2172.8,0.0001]
[1625122030087,6.40321726,2174.2,2172.8,0.0001]
[1625122030241,20.85733428,2174.0,2172.5,0.006259]
[1625122030341,0.04033405,2173.9,2172.5,0.006259]
[1625122030443,1.18523428,2174.0,2172.5,0.006259]
[1625122030536,5.79616895,2174.0,2172.1,5.60227859]
[1625122030638,5.79616895,2174.0,2172.0,1.5412379]
[1625122030737,5.79616895,2174.0,2172.1,5.62574006]
[1625122030838,1.1779,2174.0,2172.1,5.75584864]
[1625122030935,1.1779,2174.0,2172.2,0.14]
[1625122031138,5.90873387,2174.0,2172.3,0.08976948]
[1625122031237,5.01,2173.9,2172.0,1.1010843]
[1625122031340,5.01,2173.9,2172.0,1.0]
[1625122031341,5.07830373,2173.9,2172.0,1.0]
[1625122031438,4.22062221,2173.8,2172.0,1.0]
[1625122031543,0.07764734,2173.9,2172.0,1.0]
[1625122031638,0.00934361,2173.9,2172.1,6.29464244]
[1625122031736,4.09951873,2173.9,2172.0,1.29558548]
[1625122032038,0.00934361,2173.9,2172.7,1.998]
[1625122032479,6.09364262,2174.7,2172.7,1.998]
[1625122032565,5.01,2174.5,2172.8,5.41338012]
[1625122032665,0.00903871,2174.6,2172.8,5.4884526]
[1625122032764,6.04886408,2174.7,2172.8,5.32038515]
[1625122032863,6.04886408,2174.7,2172.8,5.57622515]
[1625122032964,0.00618482,2174.7,2172.8,5.57622515]
[1625122033066,0.00618482,2174.7,2172.4,6.89733]
[1625122033067,1.68988482,2174.7,2172.6,0.12357757]
[1625122033165,0.29518872,2174.5,2172.5,0.104119]
[1625122033319,0.01612977,2174.4,2172.1,0.11212141]
[1625122033500,20.0,2173.3,2172.0,1.0]
[1625122033603,24.3712,2173.3,2172.0,0.9]
[1625122033709,5.62094223,2173.2,2172.0,0.9]
[1625122033801,27.3,2173.1,2171.1,0.417957]
[1625122033902,7.05245782,2173.0,2171.1,0.417957]
[1625122034018,8.69395782,2173.0,2171.1,0.417957]
[1625122034100,20.56130045,2172.9,2171.1,0.417957]
[1625122034201,4.4667438,2172.8,2171.1,0.417957]
[1625122034298,0.08018281,2172.7,2171.1,0.417957]
[1625122034399,5.96339598,2172.7,2171.1,0.417957]
[1625122034504,5.01,2172.6,2171.1,0.417957]
[1625122034600,5.16714794,2172.5,2171.1,0.417957]
[1625122034768,5.16714794,2172.5,2171.3,0.05]
[1625122034769,5.61004709,2172.5,2171.3,0.05]
[1625122034859,5.01,2172.3,2171.3,0.05]
[1625122034958,8.1844,2172.3,2171.3,0.0001]
[1625122035064,5.4381197,2172.2,2171.3,0.0001]
[1625122035162,7.4941197,2172.2,2171.3,0.0001]
[1625122035260,7.4941197,2172.2,2170.3,0.05]
[1625122035261,47.3,2172.1,2169.6,10.719]
[1625122035362,7.46982713,2172.0,2169.5,9.82776038]
[1625122035461,0.04061241,2172.0,2169.5,0.00956038]
[1625122035559,0.01503438,2171.7,2169.5,0.00956038]
[1625122035660,3.66843438,2171.7,2169.5,0.00956038]
[1625122035760,7.78899948,2171.7,2169.5,0.00956038]
[1625122035860,32.31,2171.5,2168.2,19.8956]
[1625122035960,6.09985415,2171.4,2168.5,0.14]
[1625122036059,11.57628365,2171.4,2168.7,0.29743905]
[1625122036158,11.57628365,2171.4,2168.7,0.24743905]
[1625122036262,11.57628365,2171.4,2168.8,0.14]
[1625122036358,5.88321317,2171.3,2169.4,0.29227972]
[1625122036460,9.98676571,2171.2,2168.7,0.14743905]
[1625122036560,9.98676571,2171.2,2168.6,1.998]
[1625122036561,13.80806571,2171.2,2168.6,1.998]
[1625122036661,6.66619682,2171.1,2168.6,1.998]
[1625122036760,6.66619682,2171.1,2168.2,26.80491]
[1625122036761,6.24374838,2171.0,2168.2,19.8956]
[1625122036860,20.0,2170.9,2168.2,9.8634]
[1625122036965,7.36306189,2170.8,2168.2,9.8634]
[1625122037116,5.27821773,2170.7,2168.2,9.8634]
[1625122037215,5.27821773,2170.7,2168.0,0.05]
[1625122037216,10.65127238,2170.6,2168.1,0.14]
[1625122037370,6.1514309,2170.5,2168.1,0.14]
[1625122037470,1.80194032,2170.3,2168.0,0.05]
[1625122037567,6.46009922,2170.2,2168.0,0.05]
[1625122037670,10.89642654,2170.2,2168.0,0.05]
[1625122037769,14.2701602,2170.2,2168.0,0.05]
[1625122037871,27.3,2170.1,2167.2,4.31306785]
[1625122037976,27.3,2170.1,2168.0,0.29045679]
[1625122038075,1.26235211,2170.2,2168.0,0.29045679]
[1625122038166,1.26235211,2170.2,2168.4,0.29135983]
[1625122038167,0.10909864,2170.0,2168.4,0.29135983]
[1625122038269,4.23425486,2170.0,2168.4,0.29135983]
[1625122038373,4.12515622,2170.0,2168.7,1.998]
[1625122038571,4.12515622,2170.0,2168.8,0.14]
[1625122038870,0.9791,2170.2,2168.7,1.998]
[1625122038969,3.492,2170.0,2168.7,1.998]
[1625122039074,3.492,2170.0,2168.7,2.138]
[1625122040226,3.492,2170.0,2168.8,6.08106087]
[1625122040324,0.9791,2170.2,2168.7,0.14]
[1625122040428,4.45157706,2170.9,2169.9,1.998]
[1625122040524,0.00810788,2170.9,2169.9,1.998]
[1625122040621,0.00810788,2170.9,2169.5,0.14]
[1625122040723,0.29124941,2171.1,2168.8,2.81464705]
[1625122040724,0.19935729,2171.1,2168.8,2.81464705]
[1625122040831,0.01364562,2171.7,2169.4,0.9932]
[1625122040932,0.0489394,2171.8,2169.6,3.29]
[1625122041042,0.0489394,2171.8,2170.3,0.29730659]
[1625122041133,12.153314,2172.9,2170.5,3.29]
[1625122041227,1.661514,2172.9,2170.6,6.2111668]
[1625122041326,0.4200379,2173.6,2170.7,5.01]
[1625122041521,0.14878583,2173.5,2170.8,15.47579639]
[1625122041620,10.65907268,2173.8,2170.8,23.09849639]
[1625122041714,10.65907268,2173.8,2170.9,0.53389296]
[1625122041817,10.65907268,2173.8,2171.3,0.299896]
[1625122041919,10.65907268,2173.8,2171.4,3.75091997]
[1625122042015,56.40098156,2174.0,2171.6,3.29]
[1625122042117,56.40098156,2174.0,2171.9,0.29644145]
[1625122042218,56.40098156,2174.0,2172.0,0.4118985]
[1625122042322,56.40098156,2174.0,2172.1,3.29]
[1625122042415,56.40098156,2174.0,2172.2,5.67339632]
[1625122042520,56.40098156,2174.0,2172.3,0.27426792]
[1625122042716,56.40098156,2174.0,2172.3,0.4383694]
[1625122042819,56.40098156,2174.0,2172.4,3.59889776]
[1625122042923,56.40098156,2174.0,2172.8,1.998]
[1625122042924,4.19076484,2173.9,2172.8,1.998]
[1625122043071,4.19076484,2173.9,2172.8,3.67761337]
[1625122043266,4.19076484,2173.9,2172.9,0.13871805]
[1625122043369,4.19076484,2173.9,2172.8,1.82553815]
[1625122043472,4.19076484,2173.9,2173.0,0.14]
[1625122043617,4.69634506,2173.9,2172.5,0.01909766]
[1625122043729,4.19076484,2173.9,2173.1,0.14]
[1625122043827,4.19076484,2173.9,2172.6,0.14]
[1625122043928,0.42088248,2173.9,2172.6,0.14]
[1625122044031,2.11108248,2173.9,2172.6,0.16148582]
[1625122044127,0.52255895,2173.8,2171.7,0.19047361]
[1625122044229,21.39577212,2173.8,2171.7,0.19047361]
[1625122044327,0.29691226,2173.5,2171.7,0.19047361]
[1625122044430,6.51693436,2173.4,2170.9,0.13938531]
[1625122044527,20.0,2173.2,2171.0,0.14]
[1625122044635,20.40442921,2173.2,2171.0,0.14]
[1625122044732,7.0650025,2173.1,2170.5,0.14]
[1625122044828,8.0,2172.7,2170.4,0.00688547]
[1625122044934,0.30610259,2172.2,2170.4,0.00688547]
[1625122045029,0.0772344,2172.1,2169.2,0.00661226]
[1625122045129,20.0,2171.3,2169.2,0.00661226]
[1625122045244,6.26996375,2171.3,2169.2,0.00661226]
[1625122045334,5.01,2171.1,2169.1,0.14]
[1625122045428,4.95058087,2171.0,2168.4,3.32090105]
[1625122045531,4.83421723,2171.0,2168.4,3.32090105]
[1625122045627,4.17724678,2171.3,2169.0,0.29150512]
[1625122045736,4.56818809,2170.9,2169.0,0.29150512]
[1625122045828,0.01716453,2171.0,2169.1,0.14]
[1625122046129,1.17072728,2170.8,2169.1,0.14]
[1625122046234,4.97352728,2170.8,2169.1,0.14]
[1625122046335,5.01,2170.6,2169.1,0.14]
[1625122046434,5.01887375,2170.6,2169.1,0.14]
[1625122046586,5.05304402,2170.5,2169.1,0.14]
[1625122046683,0.00887375,2170.6,2169.1,0.14]
[1625122047835,5.53589995,2171.0,2169.1,0.14]
[1625122048033,5.01,2170.8,2169.1,0.14]
[1625122048253,4.93181053,2170.7,2169.1,0.14]
[1625122048255,4.89106379,2170.7,2169.1,0.14]
[1625122048338,0.0339972,2170.6,2169.1,0.14]
[1625122048540,5.01,2170.5,2169.1,0.14]
[1625122048636,4.45970878,2170.4,2169.1,0.14]
[1625122048741,4.94292986,2170.4,2169.1,0.14]
[1625122048836,5.01,2170.2,2169.1,0.14]
[1625122048948,4.65811438,2170.1,2169.1,0.14]
[1625122049042,4.65811438,2170.1,2168.0,6.91016]
[1625122049145,4.65811438,2170.1,2168.4,0.14]
[1625122049238,4.65811438,2170.1,2168.1,0.14]
[1625122049239,0.0637104,2170.0,2168.1,0.14]
[1625122049439,0.0637104,2170.0,2168.3,0.30406741]
[1625122049538,0.01237488,2170.0,2168.3,0.30406741]
[1625122049638,0.01237488,2170.0,2168.4,0.14]
[1625122050140,4.65811438,2170.1,2168.4,0.14]
[1625122050241,1.314,2170.3,2168.4,0.14]
[1625122050242,0.00611309,2170.2,2168.4,0.14]
[1625122050347,1.314,2170.3,2168.4,0.14]
[1625122050492,4.44153506,2170.7,2168.5,0.17790535]
[1625122050688,4.44153506,2170.7,2168.6,0.14]
[1625122050788,4.44153506,2170.7,2168.7,0.13588091]
[1625122050986,4.44153506,2170.7,2168.8,0.14]
[1625122051092,4.44153506,2170.7,2168.4,0.24182061]
[1625122051188,0.00754133,2170.7,2168.9,0.14]
[1625122051288,5.58746421,2171.0,2168.9,0.14]
[1625122051390,6.05397315,2171.0,2169.0,0.13807106]
[1625122051488,5.59481651,2171.0,2168.9,0.14]
[1625122051646,0.00829988,2171.3,2169.0,0.30854251]
[1625122051748,0.01310582,2171.6,2169.1,0.3331868]
[1625122051844,4.59474894,2171.6,2169.4,0.29811393]
[1625122051958,10.2591,2172.0,2169.9,0.3004791]
[1625122052045,3.95196494,2171.9,2170.0,0.45831496]
[1625122052144,10.21,2172.4,2170.0,6.96311828]
[1625122052145,4.42912884,2172.3,2170.0,6.96311828]
[1625122052294,4.42912884,2172.3,2169.9,7.26257031]
[1625122052295,10.0,2170.9,2170.2,0.48643966]
[1625122052392,10.0,2170.9,2170.2,0.01451572]
[1625122052489,6.76254694,2172.7,2170.5,0.30886033]
[1625122052593,4.39331833,2172.9,2170.5,11.17845189]
[1625122052764,5.13871743,2172.7,2170.8,6.90304]
[1625122052859,2.0314,2172.5,2170.9,0.36746322]
[1625122052957,5.11701392,2172.4,2170.9,0.36746322]
[1625122053058,4.75681193,2172.6,2170.9,0.36746322]
[1625122053160,4.48787049,2172.9,2170.7,8.0]
[1625122053256,4.34059504,2173.0,2171.1,0.13751829]
[1625122053355,4.38003899,2173.0,2171.1,0.13751829]
[1625122053459,4.77085398,2172.9,2171.1,0.14]
[1625122053562,0.46775423,2172.9,2171.1,0.14]
[1625122053661,8.0243,2173.1,2171.2,0.22248885]
[1625122053761,8.0243,2173.1,2171.4,6.9014]
[1625122053956,4.53164228,2173.0,2171.5,0.38034225]
[1625122054057,0.50223836,2172.9,2171.5,0.24034225]
[1625122054157,0.50223836,2172.9,2171.6,0.14]
[1625122054263,0.50223836,2172.9,2171.4,3.9584]
[1625122054361,20.0,2173.5,2171.5,5.54684229]
[1625122054461,20.0,2173.5,2171.6,0.14579246]
[1625122054561,20.56794083,2173.5,2171.6,0.14579246]
[1625122054661,20.56794083,2173.5,2171.7,0.14]
[1625122054763,20.0,2173.5,2171.8,0.14379453]
[1625122054881,10.66234824,2173.7,2171.8,0.14379453]
[1625122055033,10.66234824,2173.7,2171.9,0.14]
[1625122055116,1.661514,2174.1,2172.0,0.19723138]
[1625122055117,5.15366785,2174.0,2172.0,0.19723138]
[1625122055221,4.67667867,2173.8,2172.0,0.19723138]
[1625122055341,4.95527983,2173.8,2172.1,0.14]
[1625122055424,4.5053625,2173.5,2172.1,4.2628]
[1625122055519,4.11531828,2174.0,2172.1,4.2628]
[1625122055618,4.82190208,2173.9,2172.1,4.2628]
[1625122055718,20.00765093,2174.4,2172.1,4.2628]
[1625122055821,0.40838208,2174.3,2172.1,4.56133629]
[1625122055921,4.28532015,2173.9,2172.2,7.27537285]